lending/lending_fUSD_20251114
["ID","MTS","AMOUNT","RATE_DAILY","PERIOD"]
[393958390,1763129606772,10000.01,0.00016177,2]
[393958391,1763129606796,10000.01,0.00016177,2]
[393958392,1763129606827,10000.01,0.00016177,2]
[393958393,1763129607110,-1133.08,0.00016177,2]
[393958394,1763129619295,-7033.44481796,0.00016177,2]
[393958395,1763129619310,-10000.01,0.00016177,2]
[393958396,1763129619359,-10000.01,0.00016177,2]
[393958397,1763129619497,-10000.01,0.00016177,2]
[393958398,1763129619638,-10000.01,0.00016177,2]
[393958399,1763129619778,-10000.01,0.00016177,2]
[393958400,1763129619913,-10000.01,0.00016177,2]
[393958401,1763129622054,-10000.01,0.00016177,2]
[393958402,1763129622295,-10000.01,0.00016177,2]
[393958403,1763129622432,-10000.01,0.00016177,2]
[393958404,1763129625867,-10000.01,0.00016177,2]
[393958405,1763129627756,-10000.01,0.00016177,2]
[393958406,1763129628127,-10000.01,0.00016177,2]
[393958407,1763129628263,-10000.01,0.00016177,2]
[393958408,1763129628371,-10000.01,0.00016177,2]
[393958409,1763129628553,-10000.01,0.00016177,2]
[393958410,1763129628705,-10000.01,0.00016177,2]
[393958413,1763129638844,-10000.01,0.00016177,2]
[393958414,1763129638964,-10000.01,0.00016177,2]
[393958415,1763129639115,-10000.01,0.00016177,2]
[393958416,1763129639259,-10000.01,0.00016177,2]
[393958417,1763129641914,-300.0,0.00016176,2]
[393958418,1763129641950,-9400.01,0.00016177,2]
[393958419,1763129648361,9166.488783,7.945e-05,2]
[393958422,1763129689077,250.0,0.00015545,2]
[393958424,1763129751495,-168.63131763,0.00015995,2]
[393958425,1763129752029,238.11,0.00015545,2]
[393958426,1763129752923,-199.11307754,0.00015995,2]
[393958427,1763129781545,-187.11921967,0.00015978,2]
[393958428,1763129818308,2751.0,0.00015545,2]
[393958429,1763129843259,-1000.0,0.00037308,30]
[393958430,1763129843321,-153.14,0.00038692,120]
[393958431,1763129843375,-153.14,0.00038792,120]
[393958432,1763129843432,-153.14,0.00038892,120]
[393958433,1763129843486,-153.14,0.00038992,120]
[393958434,1763129843538,-153.14,0.00039092,120]
[393958435,1763129843589,-153.14,0.00039192,120]
[393958436,1763129843639,-153.14,0.00039292,120]
[393958437,1763129843687,-153.17,0.00039392,120]
[393958438,1763129843735,-160.62,0.000397,30]
[393958439,1763129843790,-1484.204,0.00040999,59]
[393958440,1763129843842,-150.0,0.00041125,30]
[393958441,1763129843896,-798.2744898,0.00041424,30]
[393958442,1763129843944,-519.0,0.00041432,30]
[393958443,1763129843992,-500.0,0.00041432,30]
[393958444,1763129844041,-500.0,0.00041432,30]
[393958445,1763129844088,-500.0,0.00041432,30]
[393958446,1763129844133,-500.0,0.00041432,30]
[393958447,1763129844181,-500.0,0.00041432,30]
[393958448,1763129844228,-500.0,0.00041432,30]
[393958449,1763129844275,-500.0,0.00041432,30]
[393958450,1763129844320,-500.0,0.00041432,30]
[393958451,1763129844371,-265.18,0.00041432,30]
[393958452,1763129844426,-3713.55890042,0.00041433,30]
[393958453,1763129844477,-3713.55890042,0.00041433,30]
[393958454,1763129844532,-3713.55890042,0.00041433,30]
[393958455,1763129844585,-3713.55890042,0.00041433,30]
[393958456,1763129844654,-471.71781935,0.00042,30]
[393958457,1763129844711,-2174.0,0.000425,120]
[393958458,1763129844760,-200.0,0.00043353,120]
[393958459,1763129844808,-500.0,0.00043836,31]
[393958460,1763129844854,-153.0,0.00045289,120]
[393958461,1763129844899,-153.0,0.00045289,120]
[393958462,1763129844947,-153.0,0.00045289,120]
[393958463,1763129844993,-160.62,0.000454,30]
[393958464,1763129845036,-500.0,0.00045753,30]
[393958465,1763129845090,-500.0,0.00049315,33]
[393958466,1763129845353,-210.11490117,0.00049999,120]
[393958467,1763129845415,-500.0,0.00049999,120]
[393958468,1763129845477,-500.0,0.00049999,120]
[393958469,1763129845530,-500.0,0.00049999,120]
[393958470,1763129845580,-498.13760454,0.00049999,120]
[393958471,1763129845630,-500.0,0.00049999,120]
[393958472,1763129845682,-500.0,0.00049999,120]
[393958473,1763129845731,-564.26996602,0.00049999,120]
[393958474,1763129845779,-500.0,0.00049999,120]
[393958475,1763129845826,-257.84296942,0.00049999,120]
[393958476,1763129845872,-500.0,0.00049999,120]
[393958477,1763129845925,-273.91779634,0.00049999,120]
[393958478,1763129845976,-429.24363885,0.00049999,120]
[393958479,1763129846023,-550.11198685,0.00049999,120]
[393958480,1763129846067,-500.0,0.00049999,120]
[393958481,1763129846111,-500.0,0.00049999,120]
[393958482,1763129846154,-539.95448064,0.00049999,120]
[393958483,1763129846196,-653.46285881,0.0005,120]
[393958484,1763129846240,-478.82688331,0.0005,120]
[393958485,1763129846285,-499999.0,0.0005,120]
[393958486,1763129846329,-365.0,0.00052,30]
[393958487,1763129846373,-859.0,0.00053284,30]
[393958488,1763129846416,-200.0,0.00053599,120]
[393958489,1763129846460,-859.0,0.00053833,30]
[393958490,1763129846505,-468645.08332311,0.00054,120]
[393958491,1763129846548,-302.0,0.00054,120]
[393958492,1763129846591,-1705.70922546,0.00054204,120]
[393958493,1763129846633,-1705.70922546,0.00054316,120]
[393958494,1763129846675,-859.0,0.00054383,30]
[393958495,1763129846714,-1705.70922546,0.00054606,120]
[393958496,1763129846757,-500.0,0.00054794,120]
[393958497,1763129846796,-150.0,0.00054794,120]
[393958498,1763129846833,-596.68075938,0.00054794,120]
[393958499,1763129846872,-500.0,0.00054794,120]
[393958500,1763129846913,-500.0,0.00054794,120]
[393958501,1763129846954,-500.0,0.00054794,120]
[393958502,1763129846992,-500.0,0.00054794,120]
[393958503,1763129847030,-374.97636082,0.00054794,120]
[393958504,1763129847070,-500.0,0.00054794,120]
[393958505,1763129847112,-500.0,0.00054794,120]
[393958506,1763129847156,-500.0,0.00054794,120]
[393958507,1763129847198,-302.46642932,0.00054794,120]
[393958508,1763129847239,-387.53942031,0.00054794,120]
[393958509,1763129847281,-504.83863279,0.00054794,120]
[393958510,1763129847328,-300.0,0.00054794,120]
[393958511,1763129847370,-300.0,0.00054794,120]
[393958512,1763129847410,-405.26363801,0.00054794,120]
[393958513,1763129847463,-500.0,0.00054794,120]
[393958514,1763129847509,-609.54,0.00054794,120]
[393958515,1763129847551,-459.69860748,0.00054794,120]
[393958516,1763129847590,-610.72558822,0.00054794,120]
[393958517,1763129847629,-500.0,0.00054794,120]
[393958518,1763129847670,-500.0,0.00054794,120]
[393958519,1763129847712,-194.37500612,0.00054794,120]
[393958520,1763129847758,-500.0,0.00054794,120]
[393958521,1763129847801,-833.41,0.00054794,120]
[393958522,1763129847843,-833.41,0.00054794,120]
[393958523,1763129847885,-833.41,0.00054794,120]
[393958524,1763129847930,-833.41,0.00054794,120]
[393958525,1763129847973,-833.41,0.00054794,120]
[393958526,1763129848018,-833.41,0.00054794,120]
[393958527,1763129848066,-833.41,0.00054794,120]
[393958528,1763129848116,-833.41,0.00054794,120]
[393958529,1763129848168,-833.41,0.00054794,120]
[393958530,1763129848220,-833.41,0.00054794,120]
[393958531,1763129848267,-833.41,0.00054794,120]
[393958532,1763129848313,-833.41,0.00054794,120]
[393958533,1763129848359,-833.41,0.00054794,120]
[393958534,1763129848407,-833.41,0.00054794,120]
[393958535,1763129848450,-833.41,0.00054794,120]
[393958536,1763129848498,-833.41,0.00054794,120]
[393958537,1763129848546,-833.41,0.00054794,120]
[393958538,1763129848590,-833.41,0.00054794,120]
[393958539,1763129848633,-833.41,0.00054794,120]
[393958540,1763129848677,-833.41,0.00054794,120]
[393958541,1763129848720,-833.41,0.00054794,120]
[393958542,1763129848763,-833.41,0.00054794,120]
[393958543,1763129848803,-833.41,0.00054794,120]
[393958544,1763129848844,-833.548,0.00054794,120]
[393958545,1763129848885,-541.12,0.00054794,120]
[393958546,1763129848933,-541.12,0.00054794,120]
[393958547,1763129848977,-541.12,0.00054794,120]
[393958548,1763129849021,-541.12,0.00054794,120]
[393958549,1763129849063,-541.12,0.00054794,120]
[393958550,1763129849105,-541.12,0.00054794,120]
[393958551,1763129849148,-541.12,0.00054794,120]
[393958552,1763129849190,-541.12,0.00054794,120]
[393958553,1763129849232,-541.12,0.00054794,120]
[393958554,1763129849275,-541.12,0.00054794,120]
[393958555,1763129849317,-541.12,0.00054794,120]
[393958556,1763129849362,-541.12,0.00054794,120]
[393958557,1763129849408,-541.12,0.00054794,120]
[393958558,1763129849450,-541.12,0.00054794,120]
[393958559,1763129849495,-500.0,0.00054794,120]
[393958560,1763129849542,-541.12,0.00054794,120]
[393958561,1763129849583,-628.84048359,0.00054794,120]
[393958562,1763129849624,-541.12,0.00054794,120]
[393958563,1763129849666,-541.12,0.00054794,120]
[393958564,1763129849708,-541.12,0.00054794,120]
[393958565,1763129849748,-541.12,0.00054794,120]
[393958566,1763129849790,-541.12,0.00054794,120]
[393958567,1763129849832,-541.12,0.00054794,120]
[393958568,1763129849872,-541.12,0.00054794,120]
[393958569,1763129850149,-541.12,0.00054794,120]
[393958570,1763129850195,-541.214,0.00054794,120]
[393958571,1763129850240,-500.0,0.00054794,120]
[393958572,1763129850287,-293.73782355,0.00054794,120]
[393958573,1763129850330,-500.0,0.00054794,120]
[393958574,1763129850374,-950.0,0.00054794,120]
[393958575,1763129850422,-446.58926279,0.00054794,120]
[393958576,1763129850474,-500.0,0.00054794,120]
[393958577,1763129850518,-500.0,0.00054794,120]
[393958578,1763129850563,-500.0,0.00054794,120]
[393958579,1763129850606,-619.41,0.00054794,120]
[393958580,1763129850649,-532.84729896,0.00054794,120]
[393958581,1763129850693,-500.0,0.00054794,120]
[393958582,1763129850736,-500.0,0.00054794,120]
[393958583,1763129850778,-500.0,0.00054794,120]
[393958584,1763129850824,-500.0,0.00054794,120]
[393958585,1763129850866,-500.0,0.00054794,120]
[393958586,1763129850906,-500.0,0.00054794,120]
[393958587,1763129850947,-500.0,0.00054794,120]
[393958588,1763129850987,-500.0,0.00054794,120]
[393958589,1763129851028,-600.0,0.00054794,120]
[393958590,1763129851075,-425.33069202,0.00054794,120]
[393958591,1763129851117,-568.1641883,0.00054794,120]
[393958592,1763129851160,-500.0,0.00054794,120]
[393958593,1763129851207,-500.0,0.00054795,35]
[393958594,1763129851251,-500.0,0.00054824,120]
[393958595,1763129851295,-500.0,0.00054824,120]
[393958596,1763129851341,-500.0,0.00054825,120]
[393958597,1763129851387,-500.0,0.00054826,120]
[393958598,1763129851432,-500.0,0.00054827,120]
[393958599,1763129851476,-500.0,0.00054828,120]
[393958600,1763129851519,-500.0,0.00054829,120]
[393958601,1763129851561,-500.0,0.00054829,120]
[393958602,1763129851599,-500.0,0.0005483,120]
[393958603,1763129851653,-500.0,0.00054831,120]
[393958604,1763129851694,-500.0,0.00054832,120]
[393958605,1763129851736,-500.0,0.00054833,120]
[393958606,1763129851776,-500.0,0.00054833,120]
[393958607,1763129851816,-500.0,0.00054833,120]
[393958608,1763129851858,-500.0,0.00054833,120]
[393958609,1763129851901,-500.0,0.00054835,120]
[393958610,1763129851944,-500.0,0.00054835,120]
[393958611,1763129851986,-500.0,0.00054836,120]
[393958612,1763129852026,-500.0,0.00054837,120]
[393958613,1763129852069,-500.0,0.00054838,120]
[393958614,1763129852119,-500.0,0.00054839,120]
[393958615,1763129852168,-500.0,0.0005484,120]
[393958616,1763129852217,-500.0,0.0005484,120]
[393958617,1763129852268,-500.0,0.00054841,120]
[393958618,1763129852316,-500.0,0.00054842,120]
[393958619,1763129852363,-500.0,0.00054843,120]
[393958620,1763129852405,-500.0,0.00054844,120]
[393958621,1763129852448,-500.0,0.00054844,120]
[393958622,1763129852491,-500.0,0.00054844,120]
[393958623,1763129852535,-500.0,0.00054844,120]
[393958624,1763129852576,-500.0,0.00054846,120]
[393958625,1763129852616,-500.0,0.00054846,120]
[393958626,1763129852656,-500.0,0.00054847,120]
[393958627,1763129852697,-500.0,0.00054848,120]
[393958628,1763129852739,-500.0,0.00054849,120]
[393958629,1763129852783,-500.0,0.0005485,120]
[393958630,1763129852827,-500.0,0.00054851,120]
[393958631,1763129852871,-500.0,0.00054851,120]
[393958632,1763129852917,-500.0,0.00054852,120]
[393958633,1763129852971,-500.0,0.00054853,120]
[393958634,1763129853026,-500.0,0.00054854,120]
[393958635,1763129853080,-500.0,0.00054855,120]
[393958636,1763129853129,-500.0,0.00054855,120]
[393958637,1763129853184,-500.0,0.00054855,120]
[393958638,1763129853233,-500.0,0.00054855,120]
[393958639,1763129853284,-500.0,0.00054856,120]
[393958640,1763129853333,-500.0,0.00054857,120]
[393958641,1763129853380,-500.0,0.00054858,120]
[393958642,1763129853427,-500.0,0.00054859,120]
[393958643,1763129853486,-500.0,0.0005486,120]
[393958644,1763129853539,-500.0,0.00054861,120]
[393958645,1763129853593,-500.0,0.00054862,120]
[393958646,1763129853656,-500.0,0.00054862,120]
[393958647,1763129853714,-500.0,0.00054863,120]
[393958648,1763129853763,-500.0,0.00054864,120]
[393958649,1763129853809,-500.0,0.00054865,120]
[393958650,1763129853857,-500.0,0.00054866,120]
[393958651,1763129853904,-500.0,0.00054866,120]
[393958652,1763129853949,-500.0,0.00054866,120]
[393958653,1763129853995,-500.0,0.00054866,120]
[393958654,1763129854041,-500.0,0.00054867,120]
[393958655,1763129854086,-500.0,0.00054868,120]
[393958656,1763129854133,-500.0,0.00054869,120]
[393958657,1763129854183,-500.0,0.0005487,120]
[393958658,1763129854232,-500.0,0.0005487,120]
[393958659,1763129854276,-500.0,0.00054872,120]
[393958660,1763129854321,-500.0,0.00054873,120]
[393958661,1763129854367,-500.0,0.00054873,120]
[393958662,1763129854412,-500.0,0.00054874,120]
[393958663,1763129854455,-500.0,0.00054875,120]
[393958664,1763129854498,-500.0,0.00054876,120]
[393958665,1763129854543,-500.0,0.00054877,120]
[393958666,1763129854592,-500.0,0.00054877,120]
[393958667,1763129854638,-265.138,0.00054877,120]
[393958668,1763129854687,-500.0,0.00054877,120]
[393958669,1763129854735,-500.0,0.00054877,120]
[393958670,1763129854947,-859.0,0.00054932,30]
[393958671,1763129854997,-503390.46842955,0.00055,120]
[393958672,1763129855050,-1000000.0,0.00055,120]
[393958673,1763129855098,-200.0,0.00055,120]
[393958674,1763129855147,-1000.0,0.00055,120]
[393958675,1763129855193,-1705.70922546,0.00055233,120]
[393958676,1763129855239,-150.0,0.0005526,120]
[393958677,1763129855282,-859.0,0.00055481,30]
[393958678,1763129855323,-1705.70922546,0.00055555,120]
[393958679,1763129855365,-1636.0,0.000556,90]
[393958680,1763129855408,-150.0,0.00055726,120]
[393958681,1763129855449,-152.0,0.000558,120]
[393958682,1763129855491,-1705.70922547,0.00055841,120]
[393958683,1763129855535,-200.0,0.00056,120]
[393958684,1763129855578,-1000.0,0.00056,120]
[393958685,1763129855623,-366.0,0.00056,30]
[393958686,1763129855666,-859.0,0.00056031,30]
[393958687,1763129855711,-150.0,0.00056191,120]
[393958688,1763129855755,-859.0,0.0005658,30]
[393958689,1763129855799,-150.0,0.00056657,120]
[393958690,1763129855842,-150.0,0.000567,120]
[393958691,1763129855887,-150.0,0.000567,120]
[393958692,1763129855933,-150.0,0.000567,120]
[393958693,1763129855977,-150.0,0.000567,120]
[393958694,1763129856021,-150.0,0.000567,120]
[393958695,1763129856064,-150.0,0.000567,120]
[393958696,1763129856106,-150.0,0.000567,120]
[393958697,1763129856150,-150.0,0.000567,120]
[393958698,1763129856195,-150.0,0.000567,120]
[393958699,1763129856239,-150.0,0.000567,120]
[393958700,1763129856280,-150.0,0.000567,120]
[393958701,1763129856320,-150.0,0.000567,120]
[393958702,1763129856363,-150.0,0.000567,120]
[393958703,1763129856412,-150.0,0.000567,120]
[393958704,1763129856455,-150.0,0.000567,120]
[393958705,1763129856498,-150.0,0.00056858,120]
[393958706,1763129856542,-150.0,0.00056917,120]
[393958707,1763129856582,-150.0,0.00056925,120]
[393958708,1763129856622,-150.0,0.00056925,120]
[393958709,1763129856664,-150.0,0.00056942,120]
[393958710,1763129856707,-150.0,0.00056963,120]
[393958711,1763129856753,-152.0,0.00057,120]
[393958712,1763129856800,-200.0,0.00057,120]
[393958713,1763129856847,-1000.0,0.00057,120]
[393958714,1763129856893,-150.0,0.00057015,120]
[393958715,1763129856943,-150.0,0.00057071,120]
[393958716,1763129856990,-150.0,0.00057123,120]
[393958717,1763129857036,-150.0,0.00057134,120]
[393958718,1763129857082,-150.0,0.0005715,120]
[393958719,1763129857128,-150.0,0.0005715,120]
[393958720,1763129857174,-150.0,0.00057173,120]
[393958721,1763129857224,-150.0,0.00057185,120]
[393958722,1763129857268,-150.0,0.00057225,120]
[393958723,1763129857312,-150.0,0.0005733,120]
[393958724,1763129857355,-150.0,0.00057352,120]
[393958725,1763129857400,-150.0,0.00057375,120]
[393958726,1763129857446,-150.0,0.00057375,120]
[393958727,1763129857491,-150.0,0.00057427,120]
[393958728,1763129857537,-150.0,0.00057441,120]
[393958729,1763129857581,-150.0,0.00057488,120]
[393958730,1763129857629,-150.0,0.00057488,120]
[393958731,1763129857672,-757.39871316,0.000575,30]
[393958732,1763129857721,-150.0,0.00057569,120]
[393958733,1763129857765,-150.0,0.00057589,120]
[393958734,1763129857807,-150.0,0.000576,120]
[393958735,1763129857850,-150.0,0.000576,120]
[393958736,1763129857892,-150.0,0.000576,120]
[393958737,1763129857939,-150.0,0.00057645,120]
[393958738,1763129857984,-150.0,0.00057669,120]
[393958739,1763129858030,-150.0,0.0005775,120]
[393958740,1763129858077,-150.0,0.0005775,120]
[393958741,1763129858124,-150.0,0.00057786,120]
[393958742,1763129858171,-150.0,0.00057803,120]
[393958743,1763129858218,-150.0,0.00057812,120]
[393958744,1763129858265,-150.0,0.00057825,120]
[393958745,1763129858310,-150.0,0.00057825,120]
[393958746,1763129858360,-150.0,0.00057912,120]
[393958747,1763129858416,-150.0,0.0005796,120]
[393958748,1763129858467,-150.0,0.0005796,120]
[393958749,1763129858515,-200.0,0.00058,120]
[393958750,1763129858562,-1000.0,0.00058,120]
[393958751,1763129858610,-150.0,0.00058003,120]
[393958752,1763129858658,-150.0,0.00058013,120]
[393958753,1763129858708,-150.0,0.0005805,120]
[393958754,1763129858757,-150.0,0.0005805,120]
[393958755,1763129858805,-150.0,0.00058054,120]
[393958756,1763129858852,-152.0,0.000581,120]
[393958757,1763129858897,-150.0,0.00058118,120]
[393958758,1763129858948,-150.0,0.00058154,120]
[393958759,1763129858999,-150.0,0.00058182,120]
[393958760,1763129859052,-150.0,0.00058221,120]
[393958761,1763129859103,-150.0,0.00058275,120]
[393958762,1763129859156,-150.0,0.00058275,120]
[393958763,1763129859209,-150.0,0.00058275,120]
[393958764,1763129859262,-150.0,0.00058275,120]
[393958765,1763129859313,-150.0,0.00058396,120]
[393958766,1763129859369,-150.0,0.00058433,120]
[393958767,1763129859419,-150.0,0.00058438,120]
[393958768,1763129859469,-150.0,0.000585,120]
[393958769,1763129859518,-150.0,0.000585,120]
[393958770,1763129859566,-150.0,0.000585,120]
[393958771,1763129859613,-150.0,0.0005852,120]
[393958772,1763129859662,-150.0,0.00058538,120]
[393958773,1763129859710,-150.0,0.00058553,120]
[393958774,1763129859760,-150.0,0.0005859,120]
[393958775,1763129859809,-150.0,0.00058638,120]
[393958776,1763129859857,-150.0,0.00058655,120]
[393958777,1763129859903,-150.0,0.00058725,120]
[393958778,1763129859956,-150.0,0.00058725,120]
[393958779,1763129860002,-150.0,0.00058748,120]
[393958780,1763129860048,-150.0,0.000588,120]
[393958781,1763129860095,-150.0,0.000588,120]
[393958782,1763129860144,-150.0,0.000588,120]
[393958783,1763129860192,-150.0,0.00058872,120]
[393958784,1763129860237,-150.0,0.00058881,120]
[393958785,1763129860282,-22412.16823502,0.000589,120]
[393958786,1763129860329,-150.0,0.00058905,120]
[393958787,1763129860372,-150.0,0.00058924,120]
[393958788,1763129860418,-150.0,0.0005895,120]
[393958789,1763129860467,-150.0,0.0005895,120]
[393958790,1763129860516,-150.0,0.00058986,120]
[393958791,1763129860563,-200.0,0.00059,120]
[393958792,1763129860611,-500.0,0.00059,120]
[393958793,1763129860662,-500.0,0.00059,120]
[393958794,1763129860710,-500.0,0.00059,120]
[393958795,1763129860761,-500.0,0.00059,120]
[393958796,1763129860810,-500.0,0.00059,120]
[393958797,1763129860856,-500.0,0.00059,120]
[393958798,1763129860902,-500.0,0.00059,120]
[393958799,1763129860946,-554.98,0.00059,120]
[393958800,1763129860988,-1000.0,0.00059,120]
[393958801,1763129861032,-150.0,0.00059063,120]
[393958802,1763129861075,-150.0,0.00059063,120]
[393958803,1763129861121,-150.0,0.0005909,120]
[393958804,1763129861169,-150.0,0.00059123,120]
[393958805,1763129861215,-150.0,0.00059175,120]
[393958806,1763129861264,-150.0,0.00059175,120]
[393958807,1763129861312,-150.0,0.0005922,120]
[393958808,1763129861365,-150.0,0.0005922,120]
[393958809,1763129861415,-150.0,0.00059294,120]
[393958810,1763129861464,-152.0,0.000593,120]
[393958811,1763129861510,-1636.60881076,0.000593,90]
[393958812,1763129861556,-150.0,0.00059307,120]
[393958813,1763129861600,-150.0,0.00059325,120]
[393958814,1763129861645,-150.0,0.00059365,120]
[393958815,1763129861692,-150.0,0.00059378,120]
[393958816,1763129861740,-150.0,0.000594,120]
[393958817,1763129861792,-150.0,0.000594,120]
[393958818,1763129861839,-150.0,0.000594,120]
[393958819,1763129861890,-150.0,0.00059452,120]
[393958820,1763129861942,-150.0,0.00059524,120]
[393958821,1763129861991,-150.0,0.00059535,120]
[393958822,1763129862040,-150.0,0.00059588,120]
[393958823,1763129862334,-150.0,0.00059608,120]
[393958824,1763129862394,-150.0,0.00059625,120]
[393958825,1763129862443,-150.0,0.00059625,120]
[393958826,1763129862490,-150.0,0.00059665,120]
[393958827,1763129862537,-150.0,0.00059693,120]
[393958828,1763129862584,-150.0,0.00059741,120]
[393958829,1763129862630,-150.0,0.0005985,120]
[393958830,1763129862683,-150.0,0.0005985,120]
[393958831,1763129862732,-150.0,0.0005985,120]
[393958832,1763129862777,-150.0,0.0005985,120]
[393958833,1763129862820,-150.0,0.0005985,120]
[393958834,1763129862864,-150.0,0.0005985,120]
[393958835,1763129862910,-150.0,0.0005985,120]
[393958836,1763129862955,-3409.43488212,0.0005987,120]
[393958837,1763129863005,-150.0,0.00059917,120]
[393958838,1763129863050,-150.0,0.00059959,120]
[393958839,1763129863099,-500.0,0.0005997,30]
[393958840,1763129863146,-1000.0,0.0005997,30]
[393958841,1763129863194,-150.0,0.00059974,120]
[393958842,1763129863241,-150.0,0.00059974,120]
[393958843,1763129863293,-251.01884101,0.00059974,120]
[393958844,1763129863337,-150.0,0.00059974,120]
[393958845,1763129863379,-150.0,0.00059974,120]
[393958846,1763129863420,-250.0,0.00059974,120]
[393958847,1763129863466,-150.0,0.00059974,120]
[393958848,1763129863508,-150.0,0.00059974,120]
[393958849,1763129863550,-150.0,0.00059974,120]
[393958850,1763129863591,-150.0,0.00059974,120]
[393958851,1763129863633,-200.0,0.00059974,120]
[393958852,1763129863678,-150.0,0.00059974,120]
[393958853,1763129863725,-150.0,0.00059974,120]
[393958854,1763129863771,-191.66639441,0.00059974,120]
[393958855,1763129863816,-150.0,0.00059974,120]
[393958856,1763129863864,-150.0,0.00059974,120]
[393958857,1763129863906,-186.09250165,0.00059974,120]
[393958858,1763129863949,-150.0,0.00059974,120]
[393958859,1763129863992,-150.0,0.00059974,120]
[393958860,1763129864034,-150.0,0.00059974,120]
[393958861,1763129864082,-150.0,0.00059974,120]
[393958862,1763129864132,-281.75197015,0.00059974,120]
[393958863,1763129864175,-150.0,0.00059974,120]
[393958864,1763129864217,-150.0,0.00059974,120]
[393958865,1763129864264,-150.0,0.00059974,120]
[393958866,1763129864309,-151.89863775,0.00059974,120]
[393958867,1763129864362,-500.0,0.00059974,120]
[393958868,1763129864409,-500.0,0.00059974,120]
[393958869,1763129864453,-500.0,0.00059974,120]
[393958870,1763129864500,-500.0,0.00059974,120]
[393958871,1763129864544,-500.0,0.00059974,120]
[393958872,1763129864588,-500.0,0.00059974,120]
[393958873,1763129864633,-500.0,0.00059974,120]
[393958874,1763129864687,-500.0,0.00059974,120]
[393958875,1763129864749,-500.0,0.00059974,120]
[393958876,1763129864803,-500.0,0.00059974,120]
[393958877,1763129864857,-500.0,0.00059974,120]
[393958878,1763129864906,-500.0,0.00059974,120]
[393958879,1763129864956,-500.0,0.00059974,120]
[393958880,1763129865000,-150.0,0.00059974,120]
[393958881,1763129865052,-150.0,0.00059974,120]
[393958882,1763129865099,-150.0,0.00059974,120]
[393958883,1763129865156,-500.0,0.00059974,120]
[393958884,1763129865202,-500.0,0.00059974,120]
[393958885,1763129865247,-500.0,0.00059974,120]
[393958886,1763129865291,-555.68760807,0.00059974,120]
[393958887,1763129865336,-500.0,0.00059974,120]
[393958888,1763129865380,-500.0,0.00059974,120]
[393958889,1763129865425,-500.0,0.00059974,120]
[393958890,1763129865480,-528.9962114,0.00059974,120]
[393958891,1763129865534,-150.0,0.00059974,120]
[393958892,1763129865580,-150.0,0.00059974,120]
[393958893,1763129865626,-150.6590886,0.00059974,120]
[393958894,1763129865674,-500.0,0.00059974,120]